Workbook

Sheet Setup
A1: Μέγεθος ταμπλό: | B1: 16 | D1: Θέσεις | E1: seed
D2: 3-4 | E2: =VALUE(LEFT(F2,1)) -> 4 | F2: 4 3
A3: Διοργανωτής: | B3: Ζ΄ ΕΝΩΣΗ | E3: =VALUE(RIGHT(F2,1)) -> 3
A4: Τίτλος Τουρνουά: | B4: 3ο Ε3 2016
A5: grade: | B5: e3
A6: age: | B6: 12
A7: Έδρα αγώνων: | B7: Γ.Σ. ΛΙΒΥΚΟΣ ΙΕΡΑΠ. | D7: 0 0 0 0 0 0 1 2 3 4 6 5 9 10 7 8
A8: Κατηγορία: | B8: Κ12 | D8: 1 2 3 4
A9: Έναρξη: | B9: 22 | D9: 0 0 0 0 0 0 0 0 0 0 0 0 0 0 0 0 0 0 0 0 0 0 0 0 0 0 0 0 0 0 0 0 0 0 0 0 0 0 0 0
A10: Λήξη: | B10: 23 Οκτωβρίου
A11: Επιδιατητής: | B11: Κ. Χατζηδάκης | D11: 0 | E11: seed | F11: space pos | G11: Index | H11: Value
A12: Τηλέφωνο επιδ: | B12: 6948254785 | D12: =IF(E12="-","-",IF(E12>0,D11+1,0)) -> 0 | E12: =IF(F12>0,VALUE(MID($D$7,1,F12-1)),"-") -> 0 | F12: =IF(LEN($D$7)>1,FIND(" ",$D$7,1),0) -> 2 | G12: 0 | H12: 0
D13: =IF(E13="-","-",IF(E13>0,D12+1,0)) -> 0 | E13: =IF(F13>0,VALUE(MID($D$7,F12+1,F13-F12-1)),"-") -> 0 | F13: =IF(AND(F12>0,LEN($D$7)>F12+1),FIND(" ",$D$7,F12+1),0) -> 4 | G13: 0 | H13: 0
D14: =IF(E14="-","-",IF(E14>0,D13+1,0)) -> 0 | E14: 0 | F14: 6 | G14: 0 | H14: 0
D15: =IF(E15="-","-",IF(E15>0,D14+1,0)) -> 0 | E15: =IF(F15>0,VALUE(MID($D$7,F14+1,F15-F14-1)),"-") -> 0 | F15: 8 | G15: 0 | H15: 0
D16: 0 | E16: =IF(F16>0,VALUE(MID($D$7,F15+1,F16-F15-1)),"-") -> 0 | F16: 10 | G16: 0 | H16: 0
A17: Main Draw | B17: ="("&COUNTBLANK(DrawPrep!D3:D18)&")" -> (6) | D17: 0 | E17: =IF(F17>0,VALUE(MID($D$7,F16+1,F17-F16-1)),"-") -> 0 | F17: 12 | G17: 0 | H17: 0
A18: Πλήθος bye (0-7): | B18: =COUNTBLANK(DrawPrep!D3:D18) -> 6 | D18: 1 | E18: 1 | F18: 14 | G18: 1 | H18: 1
A19: Αριθμός θέσεων seeded: | B19: 4 | D19: 2 | E19: 2 | F19: 16 | G19: 2 | H19: 2
D20: 3 | E20: 3 | F20: 18 | G20: 3 | H20: 3
D21: 4 | E21: 4 | F21: 20 | G21: 4 | H21: 4
D22: 5 | E22: 6 | F22: 22 | G22: 5 | H22: 6
D23: 6 | E23: 5 | F23: 24 | G23: 6 | H23: 5
A24: md (# για off) | B24: ok | D24: 7 | E24: 9 | F24: 26 | G24: 7 | H24: 9
D25: 8 | E25: 10 | F25: 29 | G25: 8 | H25: 10
D26: 9 | E26: 7 | F26: 31 | G26: 9 | H26: 7
A27: =RandUniq(3;4;2) | D27: 10 | E27: 8 | F27: 33 | G27: 10 | H27: 8
A29: =LEFT(D9;$B$18*2)&LEFT(D8;$B$19*2)&RandUniq($B$19+1;16-$B$18;16-$B$19-$B$18)&" "

Sheet DrawPrep
A1: =Setup!$B$3 & ", " & Setup!$B$4 & ", " & Setup!$B$7 & ", " & Setup!$B$9 & "-" & Setup!$B$10 -> Ζ΄ ΕΝΩΣΗ, 3ο Ε3 2016, Γ.Σ. ΛΙΒΥΚΟΣ ΙΕΡΑΠ., 22-23 Οκτωβρίου | H1: =Setup!$B$8 -> Κ12
A2: α/α | B2: από | C2: Α.Μ. | D2: Ονοματεπώνυμο | E2: Σύλλογος | F2: βαθμοί | G2: Τηλέφωνο | H2: Υπογραφή | I2: SortPts | J2: Rnd
A3: 1 | C3: 32156 | D3: ΜΑΡΙΝΑΚΗ ΣΤΥΛΙΑΝΗ | E3: Ο.Α.ΧΑΝΙΩΝ | F3: 37.5 | I3: =IF(D3>" ",F3+J3,0) -> 37.50201915 | J3: 0.002019152458
A4: 2 | C4: 36200 | D4: ΑΛΠΑΝΤΗ ΑΝΝΑ | E4: Ο.Α.ΣΟΥΔΑΣ | F4: 28 | I4: 28.00139213 | J4: 0.001392133209
A5: 3 | C5: 36262 | D5: ΝΤΑΜΠΑΚΑΚΗ ΧΡΥΣΗ | E5: ΗΡΑΚΛΕΙΟ Ο.Α.& Α. | F5: 26.5 | I5: 26.50148986 | J5: 0.001489862383
A6: 4 | C6: 33640 | D6: ΠΡΙΝΙΑΝΑΚΗ ΕΡΑΤΩ | E6: ΦΙΛΙΑ Τ.Κ. | F6: 15.5 | I6: 15.50306548 | J6: 0.003065476265
A7: 5 | C7: 36510 | D7: ΚΑΡΟΦΥΛΑΚΗ ΒΑΣΙΛΕΙΑ | E7: Γ.Σ.ΛΙΒΥΚΟΣ ΙΕΡΑΠΕΤΡΑΣ | F7: 11.5 | I7: 11.50446444 | J7: 0.004464437377
A8: 6 | C8: 38221 | D8: ΓΑΡΕΦΑΛΑΚΗ ΜΑΡΙΑ | E8: ΗΡΑΚΛΕΙΟ Ο.Α.& Α. | F8: 11 | I8: 11.00327396 | J8: 0.003273957736
A9: 7 | C9: 36199 | D9: ΚΑΡΑΠΑΝΤΑΖΗ ΚΑΛΛΙΟΠΗ-ΧΡΙΣΤΙΝΑ | E9: Ο.Α.ΣΟΥΔΑΣ | F9: 10.5 | I9: 10.50318629 | J9: 0.003186291495
A10: 8 | C10: 38619 | D10: ΧΑΤΖΗΑΘΑΝΑΣΙΑΔΗ ΙΩΑΝΝΑ | E10: ΗΡΑΚΛΕΙΟ Ο.Α.& Α. | F10: 3.5 | I10: 3.500942533 | J10: 0.0009425334488
A11: 9 | C11: 36599 | D11: ΔΑΒΡΑΔΟΥ ΕΜΜΑΝΟΥΕΛΑ | E11: Α.Ο.ΛΑΤΩ ΑΓ.ΝΙΚΟΛΑΟΥ | F11: 3 | I11: 3.002031979 | J11: 0.002031979404
A12: 10 | C12: 37666 | D12: ΚΟΚΚΙΝΑΚΗ ΜΑΡΙΑ-ΝΙΚΟΛΙΝΑ | E12: Ο.Α.ΧΑΝΙΩΝ | F12: 0 | I12: 0.001266448594 | J12: 0.001266448594
A13: 11 | I13: 0 | J13: 0.002131500374
A14: 12 | I14: 0 | J14: 0.001713975194
A15: 13 | I15: 0 | J15: 0.00018385342
A16: 14 | I16: 0 | J16: 0.0005860733475
A17: 15 | I17: 0 | J17: 0.004240895281
A18: 16 | I18: 0 | J18: 0.002735454439
B20: Walk-over | E20: med
B21: α/α | C21: Α.Μ. | D21: Ονοματεπώνυμο | E21: Ν ή Ο | H21: =Setup!$B$11 -> Κ. Χατζηδάκης
B22: 1 | C22: 37094 | D22: ΜΠΟΓΡΗ ΑΘΗΝΑ | E22: Ν
B23: 2 | C23: 37863 | D23: ΓΙΟΡΤΑΜΑΚΗ ΦΩΤΕΙΝΗ | E23: Ο
B24: 3
B25: 4
B26: 5

Sheet MD
A1: =Setup!B3 & ", " & Setup!B4 & ", " & Setup!B7 & ", " & Setup!B9 & "-" & Setup!B10 -> Ζ΄ ΕΝΩΣΗ, 3ο Ε3 2016, Γ.Σ. ΛΙΒΥΚΟΣ ΙΕΡΑΠ., 22-23 Οκτωβρίου | U1: =Setup!B8 -> Κ12
B2: =Setup!$B$18 -> 6
J3: 16 | O3: 8 | R3: 4 | U3: 2
A4: α/α | C4: ByeOrder | D4: ByeSum | E4: ByeCnt | F4: από | G4: seed | H4: Pts | I4: Α.Μ. | J4: Ονοματεπώνυμο | K4: επώνυμο | L4: Σύλλογος
A5: 1 | B5: 1 | E5: 0 | F5: =IF(NOT($G5="-"),VLOOKUP($G5,DrawPrep!$A$3:$G$18,2,FALSE),"") -> 0 | G5: =VLOOKUP($B5,Setup!$G$12:$H$27,2,FALSE) -> 1 | H5: =IF($G5>0,VLOOKUP($G5,DrawPrep!$A$3:$G$18,6,FALSE),0) -> 37.5 | I5: =IF(Setup!$B$24="#",0,IF($G5>0,VLOOKUP($G5,DrawPrep!$A$3:$G$18,3,FALSE),0)) -> 32156 | J5: =IF($I5>0,VLOOKUP($I5,DrawPrep!$C$3:$G$18,2,FALSE),"bye") -> ΜΑΡΙΝΑΚΗ ΣΤΥΛΙΑΝΗ | K5: =IF(NOT(I5>0),"", IF(ISERROR(FIND("-",J5)), LEFT(J5,FIND(" ",J5)-1), IF(FIND("-",J5)>FIND(" ",J5),LEFT(J5,FIND(" ",J5)-1), LEFT(J5,FIND("-",J5)-1) ))) -> ΜΑΡΙΝΑΚΗ | L5: =IF($I5>0,VLOOKUP($I5,DrawPrep!$C$3:$G$18,3,FALSE),"") -> Ο.Α.ΧΑΝΙΩΝ | M5: 1 | N5: =IF(OR(M5=1,M5=2),IF(M5=1,I5,I6),"") -> 32156 | O5: =UPPER(IF($A$2="R",IF(OR(M5=1,M5="a"),I5,IF(OR(M5=2,M5="b"),I6,"")),IF(OR(M5=1,M5="1"),K5,IF(OR(M5=2,M5="b"),K6,"")))) -> ΜΑΡΙΝΑΚΗ
A6: 2 | B6: =1-D6+4 -> 4 | C6: 1 | D6: =E6 -> 1 | E6: =IF($B$2>=C6,1,0) -> 1 | F6: =IF(NOT($G6="-"),VLOOKUP($G6,DrawPrep!$A$3:$G$18,2,FALSE),"") ->  | G6: =IF($B$2>=C6,"-",VLOOKUP($B6,Setup!$G$12:$H$27,2,FALSE)) -> - | H6: =IF(NOT($G6="-"),VLOOKUP($G6,DrawPrep!$A$3:$G$18,6,FALSE),0) -> 0 | I6: =IF(Setup!$B$24="#",0,IF(NOT($G6="-"),VLOOKUP($G6,DrawPrep!$A$3:$G$18,3,FALSE),0)) -> 0 | J6: =IF($I6>0,VLOOKUP($I6,DrawPrep!$C$3:$G$18,2,FALSE),"bye") -> bye | K6: =IF(NOT(I6>0),"", IF(ISERROR(FIND("-",J6)), LEFT(J6,FIND(" ",J6)-1), IF(FIND("-",J6)>FIND(" ",J6),LEFT(J6,FIND(" ",J6)-1), LEFT(J6,FIND("-",J6)-1) ))) ->  | L6: =IF($I6>0,VLOOKUP($I6,DrawPrep!$C$3:$G$18,3,FALSE),"") ->  | P6: 1 | Q6: =IF(OR(P6=1,P6=2),IF(P6=1,N5,N7),"") -> 32156 | R6: =UPPER(IF($A$2="R",IF(OR(P6=1,P6="a"),O5,IF(OR(P6=2,P6="b"),O7,"")),IF(OR(P6=1,P6="a"),O5,IF(OR(P6=2,P6="b"),O7,"")))) -> ΜΑΡΙΝΑΚΗ
A7: 3 | B7: =2-D7+4 -> 5 | D7: =D6+E7 -> 1 | E7: 0 | F7: =IF(NOT($G7="-"),VLOOKUP($G7,DrawPrep!$A$3:$G$18,2,FALSE),"") -> 0 | G7: =VLOOKUP($B7,Setup!$G$12:$H$27,2,FALSE) -> 6 | H7: =IF($G7>0,VLOOKUP($G7,DrawPrep!$A$3:$G$18,6,FALSE),0) -> 11 | I7: =IF(Setup!$B$24="#",0,IF($G7>0,VLOOKUP($G7,DrawPrep!$A$3:$G$18,3,FALSE),0)) -> 38221 | J7: =IF($I7>0,VLOOKUP($I7,DrawPrep!$C$3:$G$18,2,FALSE),"bye") -> ΓΑΡΕΦΑΛΑΚΗ ΜΑΡΙΑ | K7: ΓΑΡΕΦΑΛΑΚΗ | L7: =IF($I7>0,VLOOKUP($I7,DrawPrep!$C$3:$G$18,3,FALSE),"") -> ΗΡΑΚΛΕΙΟ Ο.Α.& Α. | M7: 1 | N7: =IF(OR(M7=1,M7=2),IF(M7=1,I7,I8),"") -> 38221 | O7: =UPPER(IF($A$2="R",IF(OR(M7=1,M7="a"),I7,IF(OR(M7=2,M7="b"),I8,"")),IF(OR(M7=1,M7="a"),K7,IF(OR(M7=2,M7="b"),K8,"")))) -> ΓΑΡΕΦΑΛΑΚΗ | R7: 40 40
A8: 4 | B8: =3-D8+4 -> 6 | C8: 7 | D8: 1 | E8: =IF($B$2>=C8,1,0) -> 0 | F8: =IF(NOT($G8="-"),VLOOKUP($G8,DrawPrep!$A$3:$G$18,2,FALSE),"") -> 0 | G8: =IF($B$2>=C8,"-",VLOOKUP($B8,Setup!$G$12:$H$27,2,FALSE)) -> 5 | H8: =IF(NOT($G8="-"),VLOOKUP($G8,DrawPrep!$A$3:$G$18,6,FALSE),0) -> 11.5 | I8: =IF(Setup!$B$24="#",0,IF(NOT($G8="-"),VLOOKUP($G8,DrawPrep!$A$3:$G$18,3,FALSE),0)) -> 36510 | J8: =IF($I8>0,VLOOKUP($I8,DrawPrep!$C$3:$G$18,2,FALSE),"bye") -> ΚΑΡΟΦΥΛΑΚΗ ΒΑΣΙΛΕΙΑ | K8: ΚΑΡΟΦΥΛΑΚΗ | L8: =IF($I8>0,VLOOKUP($I8,DrawPrep!$C$3:$G$18,3,FALSE),"") -> Γ.Σ.ΛΙΒΥΚΟΣ ΙΕΡΑΠΕΤΡΑΣ | O8: 41 40 | S8: 1 | T8: =IF(OR(S8=1,S8=2),IF(S8=1,Q6,Q10),"") -> 32156 | U8: =UPPER(IF($A$2="R",IF(OR(S8=1,S8="a"),R6,IF(OR(S8=2,S8="b"),R10,"")),IF(OR(S8=1,S8="a"),R6,IF(OR(S8=2,S8="b"),R10,"")))) -> ΜΑΡΙΝΑΚΗ
A9: 5 | B9: =VALUE(Setup!E2) -> 4 | D9: 1 | E9: 0 | F9: =IF(NOT($G9="-"),VLOOKUP($G9,DrawPrep!$A$3:$G$18,2,FALSE),"") -> 0 | G9: =VLOOKUP($B9,Setup!$G$12:$H$27,2,FALSE) -> 4 | H9: =IF($G9>0,VLOOKUP($G9,DrawPrep!$A$3:$G$18,6,FALSE),0) -> 15.5 | I9: =IF(Setup!$B$24="#",0,IF($G9>0,VLOOKUP($G9,DrawPrep!$A$3:$G$18,3,FALSE),0)) -> 33640 | J9: =IF($I9>0,VLOOKUP($I9,DrawPrep!$C$3:$G$18,2,FALSE),"bye") -> ΠΡΙΝΙΑΝΑΚΗ ΕΡΑΤΩ | K9: ΠΡΙΝΙΑΝΑΚΗ | L9: =IF($I9>0,VLOOKUP($I9,DrawPrep!$C$3:$G$18,3,FALSE),"") -> ΦΙΛΙΑ Τ.Κ. | M9: 1 | N9: =IF(OR(M9=1,M9=2),IF(M9=1,I9,I10),"") -> 33640 | O9: =UPPER(IF($A$2="R",IF(OR(M9=1,M9="a"),I9,IF(OR(M9=2,M9="b"),I10,"")),IF(OR(M9=1,M9="a"),K9,IF(OR(M9=2,M9="b"),K10,"")))) -> ΠΡΙΝΙΑΝΑΚΗ | U9: 61 62
A10: 6 | B10: =4-D10+4 -> 6 | C10: =IF(Setup!E2=3,3,4) -> 4 | D10: 2 | E10: =IF($B$2>=C10,1,0) -> 1 | F10: =IF(NOT($G10="-"),VLOOKUP($G10,DrawPrep!$A$3:$G$18,2,FALSE),"") ->  | G10: =IF($B$2>=C10,"-",VLOOKUP($B10,Setup!$G$12:$H$27,2,FALSE)) -> - | H10: =IF(NOT($G10="-"),VLOOKUP($G10,DrawPrep!$A$3:$G$18,6,FALSE),0) -> 0 | I10: =IF(Setup!$B$24="#",0,IF(NOT($G10="-"),VLOOKUP($G10,DrawPrep!$A$3:$G$18,3,FALSE),0)) -> 0 | J10: =IF($I10>0,VLOOKUP($I10,DrawPrep!$C$3:$G$18,2,FALSE),"bye") -> bye | L10: =IF($I10>0,VLOOKUP($I10,DrawPrep!$C$3:$G$18,3,FALSE),"") ->  | P10: 1 | Q10: =IF(OR(P10=1,P10=2),IF(P10=1,N9,N11),"") -> 33640 | R10: =UPPER(IF($A$2="R",IF(OR(P10=1,P10="a"),O9,IF(OR(P10=2,P10="b"),O11,"")),IF(OR(P10=1,P10="a"),O9,IF(OR(P10=2,P10="b"),O11,"")))) -> ΠΡΙΝΙΑΝΑΚΗ
A11: 7 | B11: =5-D11+4 -> 6 | C11: 5 | D11: 3 | E11: =IF($B$2>=C11,1,0) -> 1 | F11: =IF(NOT($G11="-"),VLOOKUP($G11,DrawPrep!$A$3:$G$18,2,FALSE),"") ->  | G11: =IF($B$2>=C11,"-",VLOOKUP($B11,Setup!$G$12:$H$27,2,FALSE)) -> - | H11: =IF(NOT($G11="-"),VLOOKUP($G11,DrawPrep!$A$3:$G$18,6,FALSE),0) -> 0 | I11: =IF(Setup!$B$24="#",0,IF(NOT($G11="-"),VLOOKUP($G11,DrawPrep!$A$3:$G$18,3,FALSE),0)) -> 0 | J11: =IF($I11>0,VLOOKUP($I11,DrawPrep!$C$3:$G$18,2,FALSE),"bye") -> bye | L11: =IF($I11>0,VLOOKUP($I11,DrawPrep!$C$3:$G$18,3,FALSE),"") ->  | M11: 2 | N11: =IF(OR(M11=1,M11=2),IF(M11=1,I11,I12),"") -> 36599 | O11: =UPPER(IF($A$2="R",IF(OR(M11=1,M11="a"),I11,IF(OR(M11=2,M11="b"),I12,"")),IF(OR(M11=1,M11="a"),K11,IF(OR(M11=2,M11="b"),K12,"")))) -> ΔΑΒΡΑΔΟΥ | R11: 40 40
A12: 8 | B12: =6-D12+4 -> 7 | D12: 3 | E12: 0 | F12: =IF(NOT($G12="-"),VLOOKUP($G12,DrawPrep!$A$3:$G$18,2,FALSE),"") -> 0 | G12: =VLOOKUP($B12,Setup!$G$12:$H$27,2,FALSE) -> 9 | H12: =IF($G12>0,VLOOKUP($G12,DrawPrep!$A$3:$G$18,6,FALSE),0) -> 3 | I12: =IF(Setup!$B$24="#",0,IF($G12>0,VLOOKUP($G12,DrawPrep!$A$3:$G$18,3,FALSE),0)) -> 36599 | J12: =IF($I12>0,VLOOKUP($I12,DrawPrep!$C$3:$G$18,2,FALSE),"bye") -> ΔΑΒΡΑΔΟΥ ΕΜΜΑΝΟΥΕΛΑ | K12: ΔΑΒΡΑΔΟΥ | L12: =IF($I12>0,VLOOKUP($I12,DrawPrep!$C$3:$G$18,3,FALSE),"") -> Α.Ο.ΛΑΤΩ ΑΓ.ΝΙΚΟΛΑΟΥ | S12: 1 | T12: =IF(OR(S12=1,S12=2),IF(S12=1,T8,T16),"") -> 32156 | U12: =UPPER(IF($A$2="R",IF(OR(S12=1,S12="a"),U8,IF(OR(S12=2,S12="b"),U16,"")),IF(OR(S12=1,S12="a"),U8,IF(OR(S12=2,S12="b"),U16,"")))) -> ΜΑΡΙΝΑΚΗ
A13: 9 | B13: =VALUE(Setup!E3) -> 3 | D13: 3 | E13: 0 | F13: =IF(NOT($G13="-"),VLOOKUP($G13,DrawPrep!$A$3:$G$18,2,FALSE),"") -> 0 | G13: =VLOOKUP($B13,Setup!$G$12:$H$27,2,FALSE) -> 3 | H13: =IF($G13>0,VLOOKUP($G13,DrawPrep!$A$3:$G$18,6,FALSE),0) -> 26.5 | I13: =IF(Setup!$B$24="#",0,IF($G13>0,VLOOKUP($G13,DrawPrep!$A$3:$G$18,3,FALSE),0)) -> 36262 | J13: =IF($I13>0,VLOOKUP($I13,DrawPrep!$C$3:$G$18,2,FALSE),"bye") -> ΝΤΑΜΠΑΚΑΚΗ ΧΡΥΣΗ | K13: ΝΤΑΜΠΑΚΑΚΗ | L13: =IF($I13>0,VLOOKUP($I13,DrawPrep!$C$3:$G$18,3,FALSE),"") -> ΗΡΑΚΛΕΙΟ Ο.Α.& Α. | M13: 1 | N13: =IF(OR(M13=1,M13=2),IF(M13=1,I13,I14),"") -> 36262 | O13: =UPPER(IF($A$2="R",IF(OR(M13=1,M13="a"),I13,IF(OR(M13=2,M13="b"),I14,"")),IF(OR(M13=1,M13="a"),K13,IF(OR(M13=2,M13="b"),K14,"")))) -> ΝΤΑΜΠΑΚΑΚΗ | S13: 6461 | U13: 64 61
A14: 10 | B14: =7-D14+4 -> 7 | C14: =IF(Setup!E2=3,4,3) -> 3 | D14: 4 | E14: =IF($B$2>=C14,1,0) -> 1 | F14: =IF(NOT($G14="-"),VLOOKUP($G14,DrawPrep!$A$3:$G$18,2,FALSE),"") ->  | G14: =IF($B$2>=C14,"-",VLOOKUP($B14,Setup!$G$12:$H$27,2,FALSE)) -> - | H14: =IF(NOT($G14="-"),VLOOKUP($G14,DrawPrep!$A$3:$G$18,6,FALSE),0) -> 0 | I14: =IF(Setup!$B$24="#",0,IF(NOT($G14="-"),VLOOKUP($G14,DrawPrep!$A$3:$G$18,3,FALSE),0)) -> 0 | J14: =IF($I14>0,VLOOKUP($I14,DrawPrep!$C$3:$G$18,2,FALSE),"bye") -> bye | L14: =IF($I14>0,VLOOKUP($I14,DrawPrep!$C$3:$G$18,3,FALSE),"") ->  | P14: 1 | Q14: =IF(OR(P14=1,P14=2),IF(P14=1,N13,N15),"") -> 36262 | R14: =UPPER(IF($A$2="R",IF(OR(P14=1,P14="a"),O13,IF(OR(P14=2,P14="b"),O15,"")),IF(OR(P14=1,P14="a"),O13,IF(OR(P14=2,P14="b"),O15,"")))) -> ΝΤΑΜΠΑΚΑΚΗ
A15: 11 | B15: =8-D15+4 -> 8 | D15: 4 | E15: 0 | F15: =IF(NOT($G15="-"),VLOOKUP($G15,DrawPrep!$A$3:$G$18,2,FALSE),"") -> 0 | G15: =VLOOKUP($B15,Setup!$G$12:$H$27,2,FALSE) -> 10 | H15: =IF($G15>0,VLOOKUP($G15,DrawPrep!$A$3:$G$18,6,FALSE),0) -> 0 | I15: =IF(Setup!$B$24="#",0,IF($G15>0,VLOOKUP($G15,DrawPrep!$A$3:$G$18,3,FALSE),0)) -> 37666 | J15: =IF($I15>0,VLOOKUP($I15,DrawPrep!$C$3:$G$18,2,FALSE),"bye") -> ΚΟΚΚΙΝΑΚΗ ΜΑΡΙΑ-ΝΙΚΟΛΙΝΑ | K15: ΚΟΚΚΙΝΑΚΗ | L15: =IF($I15>0,VLOOKUP($I15,DrawPrep!$C$3:$G$18,3,FALSE),"") -> Ο.Α.ΧΑΝΙΩΝ | M15: 1 | N15: =IF(OR(M15=1,M15=2),IF(M15=1,I15,I16),"") -> 37666 | O15: =UPPER(IF($A$2="R",IF(OR(M15=1,M15="a"),I15,IF(OR(M15=2,M15="b"),I16,"")),IF(OR(M15=1,M15="a"),K15,IF(OR(M15=2,M15="b"),K16,"")))) -> ΚΟΚΚΙΝΑΚΗ | R15: 40 41
A16: 12 | B16: =9-D16+4 -> 8 | C16: 6 | D16: 5 | E16: =IF($B$2>=C16,1,0) -> 1 | F16: =IF(NOT($G16="-"),VLOOKUP($G16,DrawPrep!$A$3:$G$18,2,FALSE),"") ->  | G16: =IF($B$2>=C16,"-",VLOOKUP($B16,Setup!$G$12:$H$27,2,FALSE)) -> - | H16: =IF(NOT($G16="-"),VLOOKUP($G16,DrawPrep!$A$3:$G$18,6,FALSE),0) -> 0 | I16: =IF(Setup!$B$24="#",0,IF(NOT($G16="-"),VLOOKUP($G16,DrawPrep!$A$3:$G$18,3,FALSE),0)) -> 0 | J16: =IF($I16>0,VLOOKUP($I16,DrawPrep!$C$3:$G$18,2,FALSE),"bye") -> bye | L16: =IF($I16>0,VLOOKUP($I16,DrawPrep!$C$3:$G$18,3,FALSE),"") ->  | S16: 2 | T16: =IF(OR(S16=1,S16=2),IF(S16=1,Q14,Q18),"") -> 36200 | U16: =UPPER(IF($A$2="R",IF(OR(S16=1,S16="a"),R14,IF(OR(S16=2,S16="b"),R18,"")),IF(OR(S16=1,S16="a"),R14,IF(OR(S16=2,S16="b"),R18,"")))) -> ΑΛΠΑΝΤΗ
A17: 13 | B17: =10-D17+4 -> 9 | D17: 5 | E17: 0 | F17: =IF(NOT($G17="-"),VLOOKUP($G17,DrawPrep!$A$3:$G$18,2,FALSE),"") -> 0 | G17: =VLOOKUP($B17,Setup!$G$12:$H$27,2,FALSE) -> 7 | H17: =IF($G17>0,VLOOKUP($G17,DrawPrep!$A$3:$G$18,6,FALSE),0) -> 10.5 | I17: =IF(Setup!$B$24="#",0,IF($G17>0,VLOOKUP($G17,DrawPrep!$A$3:$G$18,3,FALSE),0)) -> 36199 | J17: =IF($I17>0,VLOOKUP($I17,DrawPrep!$C$3:$G$18,2,FALSE),"bye") -> ΚΑΡΑΠΑΝΤΑΖΗ ΚΑΛΛΙΟΠΗ-ΧΡΙΣΤΙΝΑ | K17: ΚΑΡΑΠΑΝΤΑΖΗ | L17: =IF($I17>0,VLOOKUP($I17,DrawPrep!$C$3:$G$18,3,FALSE),"") -> Ο.Α.ΣΟΥΔΑΣ | M17: 1 | N17: =IF(OR(M17=1,M17=2),IF(M17=1,I17,I18),"") -> 36199 | O17: =UPPER(IF($A$2="R",IF(OR(M17=1,M17="a"),I17,IF(OR(M17=2,M17="b"),I18,"")),IF(OR(M17=1,M17="a"),K17,IF(OR(M17=2,M17="b"),K18,"")))) -> ΚΑΡΑΠΑΝΤΑΖΗ | U17: 64 76(5)
A18: 14 | B18: =11-D18+4 -> 10 | C18: 8 | D18: 5 | E18: =IF($B$2>=C18,1,0) -> 0 | F18: =IF(NOT($G18="-"),VLOOKUP($G18,DrawPrep!$A$3:$G$18,2,FALSE),"") -> 0 | G18: =IF($B$2>=C18,"-",VLOOKUP($B18,Setup!$G$12:$H$27,2,FALSE)) -> 8 | H18: =IF(NOT($G18="-"),VLOOKUP($G18,DrawPrep!$A$3:$G$18,6,FALSE),0) -> 3.5 | I18: =IF(Setup!$B$24="#",0,IF(NOT($G18="-"),VLOOKUP($G18,DrawPrep!$A$3:$G$18,3,FALSE),0)) -> 38619 | J18: =IF($I18>0,VLOOKUP($I18,DrawPrep!$C$3:$G$18,2,FALSE),"bye") -> ΧΑΤΖΗΑΘΑΝΑΣΙΑΔΗ ΙΩΑΝΝΑ | K18: ΧΑΤΖΗΑΘΑΝΑΣΙΑΔΗ | L18: =IF($I18>0,VLOOKUP($I18,DrawPrep!$C$3:$G$18,3,FALSE),"") -> ΗΡΑΚΛΕΙΟ Ο.Α.& Α. | O18: 41 40 | P18: 2 | Q18: =IF(OR(P18=1,P18=2),IF(P18=1,N17,N19),"") -> 36200 | R18: =UPPER(IF($A$2="R",IF(OR(P18=1,P18="a"),O17,IF(OR(P18=2,P18="b"),O19,"")),IF(OR(P18=1,P18="a"),O17,IF(OR(P18=2,P18="b"),O19,"")))) -> ΑΛΠΑΝΤΗ
A19: 15 | B19: =12-D19+4 -> 10 | C19: 2 | D19: 6 | E19: =IF($B$2>=C19,1,0) -> 1 | F19: =IF(NOT($G19="-"),VLOOKUP($G19,DrawPrep!$A$3:$G$18,2,FALSE),"") ->  | G19: =IF($B$2>=C19,"-",VLOOKUP($B19,Setup!$G$12:$H$27,2,FALSE)) -> - | H19: =IF(NOT($G19="-"),VLOOKUP($G19,DrawPrep!$A$3:$G$18,6,FALSE),0) -> 0 | I19: =IF(Setup!$B$24="#",0,IF(NOT($G19="-"),VLOOKUP($G19,DrawPrep!$A$3:$G$18,3,FALSE),0)) -> 0 | J19: =IF($I19>0,VLOOKUP($I19,DrawPrep!$C$3:$G$18,2,FALSE),"bye") -> bye | L19: =IF($I19>0,VLOOKUP($I19,DrawPrep!$C$3:$G$18,3,FALSE),"") ->  | M19: 2 | N19: =IF(OR(M19=1,M19=2),IF(M19=1,I19,I20),"") -> 36200 | O19: =UPPER(IF($A$2="R",IF(OR(M19=1,M19="a"),I19,IF(OR(M19=2,M19="b"),I20,"")),IF(OR(M19=1,M19="a"),K19,IF(OR(M19=2,M19="b"),K20,"")))) -> ΑΛΠΑΝΤΗ | R19: 53 42
A20: 16 | B20: 2 | D20: 6 | E20: 0 | F20: =IF(NOT($G20="-"),VLOOKUP($G20,DrawPrep!$A$3:$G$18,2,FALSE),"") -> 0 | G20: =VLOOKUP($B20,Setup!$G$12:$H$27,2,FALSE) -> 2 | H20: =IF($G20>0,VLOOKUP($G20,DrawPrep!$A$3:$G$18,6,FALSE),0) -> 28 | I20: =IF(Setup!$B$24="#",0,IF($G20>0,VLOOKUP($G20,DrawPrep!$A$3:$G$18,3,FALSE),0)) -> 36200 | J20: =IF($I20>0,VLOOKUP($I20,DrawPrep!$C$3:$G$18,2,FALSE),"bye") -> ΑΛΠΑΝΤΗ ΑΝΝΑ | K20: ΑΛΠΑΝΤΗ | L20: =IF($I20>0,VLOOKUP($I20,DrawPrep!$C$3:$G$18,3,FALSE),"") -> Ο.Α.ΣΟΥΔΑΣ
J24: seeded players
J25: ="1. " & IF(Setup!B19>0,LEFT(DrawPrep!D3,FIND(" ",DrawPrep!D3)+1),"") -> 1. ΜΑΡΙΝΑΚΗ Σ
J26: ="2. " & IF(Setup!B19>1,LEFT(DrawPrep!D4,FIND(" ",DrawPrep!D4)+1),"") -> 2. ΑΛΠΑΝΤΗ Α | U26: επιδιαιτητής
J27: ="3. " & IF(Setup!B19>2,LEFT(DrawPrep!D5,FIND(" ",DrawPrep!D5)+1),"") -> 3. ΝΤΑΜΠΑΚΑΚΗ Χ | U27: =Setup!B11 -> Κ. Χατζηδάκης
J28: ="4. " & IF(Setup!B19>3,LEFT(DrawPrep!D6,FIND(" ",DrawPrep!D6)+1),"") -> 4. ΠΡΙΝΙΑΝΑΚΗ Ε
J40: BoldPlayers
J41: =IF(Setup!$B$19>0,LEFT(DrawPrep!D3,FIND(" ",DrawPrep!D3)-1)) -> ΜΑΡΙΝΑΚΗ
J42: =IF(Setup!$B$19>1,LEFT(DrawPrep!D4,FIND(" ",DrawPrep!D4)-1)) -> ΑΛΠΑΝΤΗ
J43: =IF(Setup!$B$19>2,LEFT(DrawPrep!D5,FIND(" ",DrawPrep!D5)-1)) -> ΝΤΑΜΠΑΚΑΚΗ
J44: =IF(Setup!$B$19>3,LEFT(DrawPrep!D6,FIND(" ",DrawPrep!D6)-1)) -> ΠΡΙΝΙΑΝΑΚΗ

Sheet Day1
A1: =Setup!B3 & ", " & Setup!B4 & ", " & Setup!B7 & " (" & Setup!B8 & ")" -> Ζ΄ ΕΝΩΣΗ, 3ο Ε3 2016, Γ.Σ. ΛΙΒΥΚΟΣ ΙΕΡΑΠ. (Κ12)
A2: =Setup!$B$11 -> Κ. Χατζηδάκης
A3: Πρόγραμμα αγώνων | E3: Round 1 | F3: i
A4: ΩΡΑ | B4: Κτγρ. | C4: Αθλητής-Σύλλογος | E4: Αθλητής-Σύλλογος
A5: Έναρξη | B5: Κ12 | C5: ΜΑΡΙΝΑΚΗ Σ (Ο.Α.ΧΑΝΙΩΝ)
B6: Κ12 | C6: ΓΑΡΕΦΑΛΑΚΗ Μ (ΗΡΑΚΛΕΙΟ Ο.Α.& Α.) | D6: - | E6: ΚΑΡΟΦΥΛΑΚΗ Β (Γ.Σ.ΛΙΒΥΚΟΣ ΙΕΡΑΠΕΤΡΑΣ)
B7: Κ12 | C7: ΠΡΙΝΙΑΝΑΚΗ Ε (ΦΙΛΙΑ Τ.Κ.)
B8: Κ12 | E8: ΔΑΒΡΑΔΟΥ Ε (Α.Ο.ΛΑΤΩ ΑΓ.ΝΙΚΟΛΑΟΥ)
A9: όχι πριν | B9: Κ12 | C9: ΝΤΑΜΠΑΚΑΚΗ Χ (ΗΡΑΚΛΕΙΟ Ο.Α.& Α.)
B10: Κ12 | C10: ΚΟΚΚΙΝΑΚΗ Μ (Ο.Α.ΧΑΝΙΩΝ)
B11: Κ12 | C11: ΚΑΡΑΠΑΝΤΑΖΗ Κ (Ο.Α.ΣΟΥΔΑΣ) | D11: - | E11: ΧΑΤΖΗΑΘΑΝΑΣΙΑΔΗ Ι (ΗΡΑΚΛΕΙΟ Ο.Α.& Α.)
B12: Κ12 | E12: ΑΛΠΑΝΤΗ Α (Ο.Α.ΣΟΥΔΑΣ)

Sheet Day2
A1: =Setup!B3 & ", " & Setup!B4 & ", " & Setup!B7 & " (" & Setup!B8 & ")" -> Ζ΄ ΕΝΩΣΗ, 3ο Ε3 2016, Γ.Σ. ΛΙΒΥΚΟΣ ΙΕΡΑΠ. (Κ12)
A2: =Setup!$B$11 -> Κ. Χατζηδάκης
A3: Πρόγραμμα αγώνων | E3: Round 2 | F3: i
A4: ΩΡΑ | B4: Κτγρ. | C4: Αθλητής-Σύλλογος | E4: Αθλητής-Σύλλογος
A5: Έναρξη | B5: Α12 | C5: ΟΡΦΑΝΙΔΗΣ Μ (0) | D5: - | E5: ΚΑΝΕΛΛΟΠΟΥΛΟΣ Α (0)
B6: Α12 | C6: ΘΕΟΔΩΡΟΥ Κ (0) | D6: - | E6: ΣΤΑΥΡΙΔΗΣ Π (0)
B7: Α12 | C7: ΜΑΜΑΣΗΣ Γ (0) | D7: - | E7: ΚΟΥΤΣΟΓΙΩΡΓΟΣ Σ (0)
B8: Α12 | C8: ΡΟΔΙΤΗΣ Ν (0) | D8: - | E8: ΓΕΩΡΓΙΑΔΗΣ Α (0)
A9: όχι πριν

Sheet notes

Sheet PrgPrep
A1: =Setup!B3 & ", " & Setup!B4 & ", " & Setup!B7 & " (" & Setup!B8 & ")" -> Ζ΄ ΕΝΩΣΗ, 3ο Ε3 2016, Γ.Σ. ΛΙΒΥΚΟΣ ΙΕΡΑΠ. (Κ12) | G1: Don't Change this Worksheet !
A2: =Setup!$B$11 -> Κ. Χατζηδάκης
A3: Πρόγραμμα αγώνων | E3: Round 1 | F3: i
A4: ΩΡΑ | B4: Κτγρ. | C4: Αθλητής-Σύλλογος | E4: Αθλητής-Σύλλογος
A5: Έναρξη | B5: =Setup!$B$8 -> Κ12 | C5: =IF(OR(MD!J5="bye",MD!J5="LWD"), "",CONCATENATE(LEFT(MD!J5,FIND(" ",MD!J5)+1)," (",MD!L5,")")) -> ΜΑΡΙΝΑΚΗ Σ (Ο.Α.ΧΑΝΙΩΝ) | D5: =IF(OR(C5="",E5="")," ","-") ->  | E5: =IF(OR(MD!J6="bye",MD!J6="LWD"), "",CONCATENATE(LEFT(MD!J6,FIND(" ",MD!J6)+1)," (",MD!L6,")")) -> 
B6: =Setup!$B$8 -> Κ12 | C6: =IF(OR(MD!J7="bye",MD!J7="LWD"), "",CONCATENATE(LEFT(MD!J7,FIND(" ",MD!J7)+1)," (",MD!L7,")")) -> ΓΑΡΕΦΑΛΑΚΗ Μ (ΗΡΑΚΛΕΙΟ Ο.Α.& Α.) | D6: =IF(OR(C6="",E6="")," ","-") -> - | E6: =IF(OR(MD!J8="bye",MD!J8="LWD"), "",CONCATENATE(LEFT(MD!J8,FIND(" ",MD!J8)+1)," (",MD!L8,")")) -> ΚΑΡΟΦΥΛΑΚΗ Β (Γ.Σ.ΛΙΒΥΚΟΣ ΙΕΡΑΠΕΤΡΑΣ)
B7: =Setup!$B$8 -> Κ12 | C7: =IF(OR(MD!J9="bye",MD!J9="LWD"), "",CONCATENATE(LEFT(MD!J9,FIND(" ",MD!J9)+1)," (",MD!L9,")")) -> ΠΡΙΝΙΑΝΑΚΗ Ε (ΦΙΛΙΑ Τ.Κ.) | E7: =IF(OR(MD!J10="bye",MD!J10="LWD"), "",CONCATENATE(LEFT(MD!J10,FIND(" ",MD!J10)+1)," (",MD!L10,")")) -> 
B8: =Setup!$B$8 -> Κ12 | C8: =IF(OR(MD!J11="bye",MD!J11="LWD"), "",CONCATENATE(LEFT(MD!J11,FIND(" ",MD!J11)+1)," (",MD!L11,")")) ->  | E8: =IF(OR(MD!J12="bye",MD!J12="LWD"), "",CONCATENATE(LEFT(MD!J12,FIND(" ",MD!J12)+1)," (",MD!L12,")")) -> ΔΑΒΡΑΔΟΥ Ε (Α.Ο.ΛΑΤΩ ΑΓ.ΝΙΚΟΛΑΟΥ)
A9: όχι πριν | B9: =Setup!$B$8 -> Κ12 | C9: =IF(OR(MD!J13="bye",MD!J13="LWD"), "",CONCATENATE(LEFT(MD!J13,FIND(" ",MD!J13)+1)," (",MD!L13,")")) -> ΝΤΑΜΠΑΚΑΚΗ Χ (ΗΡΑΚΛΕΙΟ Ο.Α.& Α.) | E9: =IF(OR(MD!J14="bye",MD!J14="LWD"), "",CONCATENATE(LEFT(MD!J14,FIND(" ",MD!J14)+1)," (",MD!L14,")")) -> 
B10: =Setup!$B$8 -> Κ12 | C10: =IF(OR(MD!J15="bye",MD!J15="LWD"), "",CONCATENATE(LEFT(MD!J15,FIND(" ",MD!J15)+1)," (",MD!L15,")")) -> ΚΟΚΚΙΝΑΚΗ Μ (Ο.Α.ΧΑΝΙΩΝ) | E10: =IF(OR(MD!J16="bye",MD!J16="LWD"), "",CONCATENATE(LEFT(MD!J16,FIND(" ",MD!J16)+1)," (",MD!L16,")")) -> 
B11: =Setup!$B$8 -> Κ12 | C11: =IF(OR(MD!J17="bye",MD!J17="LWD"), "",CONCATENATE(LEFT(MD!J17,FIND(" ",MD!J17)+1)," (",MD!L17,")")) -> ΚΑΡΑΠΑΝΤΑΖΗ Κ (Ο.Α.ΣΟΥΔΑΣ) | D11: - | E11: =IF(OR(MD!J18="bye",MD!J18="LWD"), "",CONCATENATE(LEFT(MD!J18,FIND(" ",MD!J18)+1)," (",MD!L18,")")) -> ΧΑΤΖΗΑΘΑΝΑΣΙΑΔΗ Ι (ΗΡΑΚΛΕΙΟ Ο.Α.& Α.)
B12: =Setup!$B$8 -> Κ12 | C12: =IF(OR(MD!J19="bye",MD!J19="LWD"), "",CONCATENATE(LEFT(MD!J19,FIND(" ",MD!J19)+1)," (",MD!L19,")")) ->  | E12: =IF(OR(MD!J20="bye",MD!J20="LWD"), "",CONCATENATE(LEFT(MD!J20,FIND(" ",MD!J20)+1)," (",MD!L20,")")) -> ΑΛΠΑΝΤΗ Α (Ο.Α.ΣΟΥΔΑΣ)
A18: Πρόγραμμα αγώνων | E18: Round 2 | F18: i
A19: ΩΡΑ | B19: Κτγρ. | C19: Αθλητής-Σύλλογος | E19: Αθλητής-Σύλλογος
A20: Έναρξη | B20: =Setup!$B$8 -> Κ12 | C20: =IF(MD!M5="", "", IF(MD!M5=1, CONCATENATE(LEFT(MD!J5,FIND(" ",MD!J5)+1)," (",MD!L5,")"),CONCATENATE(LEFT(MD!J6,FIND(" ",MD!J6)+1)," (",MD!L6,")"))) -> ΜΑΡΙΝΑΚΗ Σ (Ο.Α.ΧΑΝΙΩΝ) | D20: =IF(OR(C20="",E20="")," ","-") -> - | E20: =IF(MD!M7="", "", IF(MD!M7=1, CONCATENATE(LEFT(MD!J7,FIND(" ",MD!J7)+1)," (",MD!L7,")"),CONCATENATE(LEFT(MD!J8,FIND(" ",MD!J8)+1)," (",MD!L8,")"))) -> ΓΑΡΕΦΑΛΑΚΗ Μ (ΗΡΑΚΛΕΙΟ Ο.Α.& Α.)
B21: =Setup!$B$8 -> Κ12 | C21: =IF(MD!M9="", "", IF(MD!M9=1, CONCATENATE(LEFT(MD!J9,FIND(" ",MD!J9)+1)," (",MD!L9,")"),CONCATENATE(LEFT(MD!J10,FIND(" ",MD!J10)+1)," (",MD!L10,")"))) -> ΠΡΙΝΙΑΝΑΚΗ Ε (ΦΙΛΙΑ Τ.Κ.) | D21: =IF(OR(C21="",E21="")," ","-") -> - | E21: =IF(MD!M11="", "", IF(MD!M11=1, CONCATENATE(LEFT(MD!J11,FIND(" ",MD!J11)+1)," (",MD!L11,")"),CONCATENATE(LEFT(MD!J12,FIND(" ",MD!J12)+1)," (",MD!L12,")"))) -> ΔΑΒΡΑΔΟΥ Ε (Α.Ο.ΛΑΤΩ ΑΓ.ΝΙΚΟΛΑΟΥ)
B22: =Setup!$B$8 -> Κ12 | C22: =IF(MD!M13="", "", IF(MD!M13=1, CONCATENATE(LEFT(MD!J13,FIND(" ",MD!J13)+1)," (",MD!L13,")"),CONCATENATE(LEFT(MD!J14,FIND(" ",MD!J14)+1)," (",MD!L14,")"))) -> ΝΤΑΜΠΑΚΑΚΗ Χ (ΗΡΑΚΛΕΙΟ Ο.Α.& Α.) | D22: =IF(OR(C22="",E22="")," ","-") -> - | E22: =IF(MD!M15="", "", IF(MD!M15=1, CONCATENATE(LEFT(MD!J15,FIND(" ",MD!J15)+1)," (",MD!L15,")"),CONCATENATE(LEFT(MD!J16,FIND(" ",MD!J16)+1)," (",MD!L16,")"))) -> ΚΟΚΚΙΝΑΚΗ Μ (Ο.Α.ΧΑΝΙΩΝ)
B23: =Setup!$B$8 -> Κ12 | C23: =IF(MD!M17="", "", IF(MD!M17=1, CONCATENATE(LEFT(MD!J17,FIND(" ",MD!J17)+1)," (",MD!L17,")"),CONCATENATE(LEFT(MD!J18,FIND(" ",MD!J18)+1)," (",MD!L18,")"))) -> ΚΑΡΑΠΑΝΤΑΖΗ Κ (Ο.Α.ΣΟΥΔΑΣ) | D23: =IF(OR(C23="",E23="")," ","-") -> - | E23: =IF(MD!M19="", "", IF(MD!M19=1, CONCATENATE(LEFT(MD!J19,FIND(" ",MD!J19)+1)," (",MD!L19,")"),CONCATENATE(LEFT(MD!J20,FIND(" ",MD!J20)+1)," (",MD!L20,")"))) -> ΑΛΠΑΝΤΗ Α (Ο.Α.ΣΟΥΔΑΣ)
A24: όχι πριν
A30: Don't Change this Worksheet !

Sheet tables
A1: RndIndx | B1: random | C1: FixRandom | F1: 1ος | G1: 2ος | H1: 3-4 | I1: 5-8 | J1: 9-16 | K1: 17-32 | P1: Category | Q1: Juniors | R1: Serniors
A2: 1 | B2: =RAND()/222 -> 0.0006022163227 | C2: 0.002019152458 | E2: E1-12 | F2: 30 | G2: 25 | H2: 15 | I2: 10 | J2: 7.5 | K2: 5 | P2: Α10 | Q2: Α10 | R2: m35
A3: 2 | B3: =RAND()/222 -> 0.001693643547 | C3: 0.001392133209 | E3: E1-14 | F3: 60 | G3: 50 | H3: 30 | I3: 20 | J3: 15 | K3: 10 | P3: Α12 | Q3: Α12 | R3: m40
A4: 3 | B4: =RAND()/222 -> 0.001525875262 | C4: 0.001489862383 | E4: E1-16 | F4: 120 | G4: 100 | H4: 60 | I4: 40 | J4: 30 | K4: 20 | P4: Α14 | Q4: Α14 | R4: m45
A5: 4 | B5: =RAND()/222 -> 0.0014772599 | C5: 0.003065476265 | E5: E1-18 | F5: 150 | G5: 125 | H5: 75 | I5: 50 | J5: 37.5 | K5: 25 | P5: Α16 | Q5: Α16 | R5: m50
A6: 5 | B6: =RAND()/222 -> 0.0002089276925 | C6: 0.004464437377 | E6: E2-12 | F6: 15 | G6: 12.5 | H6: 7.5 | I6: 5 | J6: 4 | K6: 2.5 | P6: Α18 | Q6: Α18 | R6: m55
A7: 6 | B7: =RAND()/222 -> 0.00350456806 | C7: 0.003273957736 | E7: E2-14 | F7: 30 | G7: 25 | H7: 15 | I7: 10 | J7: 8 | K7: 5 | P7: Κ10 | Q7: Κ10 | R7: m60
A8: 7 | B8: 0.002678937101 | C8: 0.003186291495 | E8: E2-16 | F8: 60 | G8: 50 | H8: 30 | I8: 20 | J8: 16 | K8: 10 | P8: Κ12 | Q8: Κ12 | R8: m65
A9: 8 | B9: 0.004187350883 | C9: 0.0009425334488 | E9: E3-12 | F9: 6 | G9: 5 | H9: 3 | I9: 2 | J9: 1.5 | K9: 1 | P9: Κ14 | Q9: Κ14 | R9: m70
A10: 9 | B10: 0.001011363278 | C10: 0.002031979404 | E10: E3-14 | F10: 12 | G10: 10 | H10: 6 | I10: 4 | J10: 3 | K10: 2 | P10: Κ16 | Q10: Κ16 | R10: m75
A11: 10 | B11: 0.003937586571 | C11: 0.001266448594 | E11: E3-16 | F11: 24 | G11: 20 | H11: 12 | I11: 8 | J11: 6 | K11: 4 | P11: Κ18 | Q11: Κ18 | R11: w35
A12: 11 | B12: 0.0002721838182 | C12: 0.002131500374 | E12: E4-12 | F12: 3 | G12: 2.5 | H12: 1.5 | I12: 1 | J12: 0.75 | K12: 0.5 | P12: ΑΝΔ | Q12: ΑΝΔ | R12: w40
A13: 12 | B13: 0.001766729755 | C13: 0.001713975194 | E13: E4-14 | F13: 6 | G13: 5 | H13: 3 | I13: 2 | J13: 1.5 | K13: 1 | P13: ΓΥΝ | Q13: ΓΥΝ | R13: w45
A14: 13 | B14: 0.0003294944144 | C14: 0.00018385342 | E14: E4-16 | F14: 12 | G14: 10 | H14: 6 | I14: 4 | J14: 3 | K14: 2 | P14: - | Q14: - | R14: w50
A15: 14 | B15: 0.003669785063 | C15: 0.0005860733475 | P15: - | Q15: - | R15: w55
A16: 15 | B16: 0.002816500315 | C16: 0.004240895281 | P16: - | Q16: - | R16: -
A17: 16 | B17: 0.002689162424 | C17: 0.002735454439

Sheet matches
A1: round | B1: winner | D1: looser | F1: score | H1: Player | I1: Position | K1: Set-up
A2: 16 | B2: =IF(OR(MD!$M$5=1,MD!$M$5=2), IF(MD!$M$5=1,MD!$I$5,MD!$I$6),"#") -> 32156 | C2: =TRIM(LEFT(VLOOKUP(B2,DrawPrep!$C$3:$D$18,2,FALSE),FIND(" ",VLOOKUP(B2,DrawPrep!$C$3:$D$18,2,FALSE),1)-1)) -> ΜΑΡΙΝΑΚΗ | D2: =IF(OR(MD!$M$5 =1,MD!$M$5 =2), IF(MD!$M$5 =2,MD!$I$5,MD!$I$6),"#") -> 0 | E2: =TRIM(LEFT(VLOOKUP(D2,DrawPrep!$C$3:$D$18,2,FALSE),FIND(" ",VLOOKUP(D2,DrawPrep!$C$3:$D$18,2,FALSE),1)-1)) ->  | F2: =MD!O6 -> 0 | H2: =B16 -> 32156 | I2: 1st | K2: title: | L2: =Setup!$B$4 -> 3ο Ε3 2016
A3: 16 | B3: =IF(OR(MD!$M$7=1,MD!$M$7=2), IF(MD!$M$7=1,MD!$I$7,MD!$I$8),"#") -> 38221 | C3: =TRIM(LEFT(VLOOKUP(B3,DrawPrep!$C$3:$D$18,2,FALSE),FIND(" ",VLOOKUP(B3,DrawPrep!$C$3:$D$18,2,FALSE),1)-1)) -> ΓΑΡΕΦΑΛΑΚΗ | D3: =IF(OR(MD!$M$7 =1,MD!$M$7 =2), IF(MD!$M$7 =2,MD!$I$7,MD!$I$8),"#") -> 36510 | E3: =TRIM(LEFT(VLOOKUP(D3,DrawPrep!$C$3:$D$18,2,FALSE),FIND(" ",VLOOKUP(D3,DrawPrep!$C$3:$D$18,2,FALSE),1)-1)) -> ΚΑΡΟΦΥΛΑΚΗ | F3: =MD!O8 -> 41 40 | H3: =D16 -> 36200 | I3: 2nd | K3: grade: | L3: =Setup!$B$5 -> e3
A4: 16 | B4: =IF(OR(MD!$M$9=1,MD!$M$9=2), IF(MD!$M$9=1,MD!$I$9,MD!$I$10),"#") -> 33640 | C4: =TRIM(LEFT(VLOOKUP(B4,DrawPrep!$C$3:$D$18,2,FALSE),FIND(" ",VLOOKUP(B4,DrawPrep!$C$3:$D$18,2,FALSE),1)-1)) -> ΠΡΙΝΙΑΝΑΚΗ | D4: =IF(OR(MD!$M$9 =1,MD!$M$9 =2), IF(MD!$M$9 =2,MD!$I$9,MD!$I$10),"#") -> 0 | E4: =TRIM(LEFT(VLOOKUP(D4,DrawPrep!$C$3:$D$18,2,FALSE),FIND(" ",VLOOKUP(D4,DrawPrep!$C$3:$D$18,2,FALSE),1)-1)) ->  | F4: =MD!O10 -> 0 | H4: =D14 -> 33640 | I4: 3_4 | K4: age: | L4: =Setup!$B$6 -> 12
A5: 16 | B5: =IF(OR(MD!$M$11=1,MD!$M$11=2), IF(MD!$M$11=1,MD!$I$11,MD!$I$12),"#") -> 36599 | C5: =TRIM(LEFT(VLOOKUP(B5,DrawPrep!$C$3:$D$18,2,FALSE),FIND(" ",VLOOKUP(B5,DrawPrep!$C$3:$D$18,2,FALSE),1)-1)) -> ΔΑΒΡΑΔΟΥ | D5: =IF(OR(MD!$M$11=1,MD!$M$11=2), IF(MD!$M$11=2,MD!$I$11,MD!$I$12),"#") -> 0 | E5: =TRIM(LEFT(VLOOKUP(D5,DrawPrep!$C$3:$D$18,2,FALSE),FIND(" ",VLOOKUP(D5,DrawPrep!$C$3:$D$18,2,FALSE),1)-1)) ->  | F5: =MD!O12 -> 0 | H5: =D15 -> 36262 | I5: 3_4 | K5: category: | L5: =Setup!$B$8 -> Κ12
A6: 16 | B6: =IF(OR(MD!$M$13=1,MD!$M$13=2), IF(MD!$M$13=1,MD!$I$13,MD!$I$14),"#") -> 36262 | C6: =TRIM(LEFT(VLOOKUP(B6,DrawPrep!$C$3:$D$18,2,FALSE),FIND(" ",VLOOKUP(B6,DrawPrep!$C$3:$D$18,2,FALSE),1)-1)) -> ΝΤΑΜΠΑΚΑΚΗ | D6: =IF(OR(MD!$M$13=1,MD!$M$13=2), IF(MD!$M$13=2,MD!$I$13,MD!$I$14),"#") -> 0 | E6: =TRIM(LEFT(VLOOKUP(D6,DrawPrep!$C$3:$D$18,2,FALSE),FIND(" ",VLOOKUP(D6,DrawPrep!$C$3:$D$18,2,FALSE),1)-1)) ->  | F6: =MD!O14 -> 0 | H6: =D10 -> 38221 | I6: 5_8 | K6: period: | L6: =Setup!$B$9&"-"&Setup!$B$10 -> 22-23 Οκτωβρίου
A7: 16 | B7: =IF(OR(MD!$M$15=1,MD!$M$15=2), IF(MD!$M$15=1,MD!$I$15,MD!$I$16),"#") -> 37666 | C7: =TRIM(LEFT(VLOOKUP(B7,DrawPrep!$C$3:$D$18,2,FALSE),FIND(" ",VLOOKUP(B7,DrawPrep!$C$3:$D$18,2,FALSE),1)-1)) -> ΚΟΚΚΙΝΑΚΗ | D7: =IF(OR(MD!$M$15=1,MD!$M$15=2), IF(MD!$M$15=2,MD!$I$15,MD!$I$16),"#") -> 0 | E7: =TRIM(LEFT(VLOOKUP(D7,DrawPrep!$C$3:$D$18,2,FALSE),FIND(" ",VLOOKUP(D7,DrawPrep!$C$3:$D$18,2,FALSE),1)-1)) ->  | F7: =MD!O16 -> 0 | H7: =D11 -> 36599 | I7: 5_8 | K7: organizer: | L7: =Setup!$B$3 -> Ζ΄ ΕΝΩΣΗ
A8: 16 | B8: =IF(OR(MD!$M$17=1,MD!$M$17=2), IF(MD!$M$17=1,MD!$I$17,MD!$I$18),"#") -> 36199 | C8: =TRIM(LEFT(VLOOKUP(B8,DrawPrep!$C$3:$D$18,2,FALSE),FIND(" ",VLOOKUP(B8,DrawPrep!$C$3:$D$18,2,FALSE),1)-1)) -> ΚΑΡΑΠΑΝΤΑΖΗ | D8: =IF(OR(MD!$M$17=1,MD!$M$17=2), IF(MD!$M$17=2,MD!$I$17,MD!$I$18),"#") -> 38619 | E8: =TRIM(LEFT(VLOOKUP(D8,DrawPrep!$C$3:$D$18,2,FALSE),FIND(" ",VLOOKUP(D8,DrawPrep!$C$3:$D$18,2,FALSE),1)-1)) -> ΧΑΤΖΗΑΘΑΝΑΣΙΑΔΗ | F8: =MD!O18 -> 41 40 | H8: =D12 -> 37666 | I8: 5_8
A9: 16 | B9: =IF(OR(MD!$M$19=1,MD!$M$19=2), IF(MD!$M$19=1,MD!$I$19,MD!$I$20),"#") -> 36200 | C9: =TRIM(LEFT(VLOOKUP(B9,DrawPrep!$C$3:$D$18,2,FALSE),FIND(" ",VLOOKUP(B9,DrawPrep!$C$3:$D$18,2,FALSE),1)-1)) -> ΑΛΠΑΝΤΗ | D9: =IF(OR(MD!$M$19=1,MD!$M$19=2), IF(MD!$M$19=2,MD!$I$19,MD!$I$20),"#") -> 0 | E9: =TRIM(LEFT(VLOOKUP(D9,DrawPrep!$C$3:$D$18,2,FALSE),FIND(" ",VLOOKUP(D9,DrawPrep!$C$3:$D$18,2,FALSE),1)-1)) ->  | F9: =MD!O20 -> 0 | H9: =D13 -> 36199 | I9: 5_8
A10: 8 | B10: =IF(OR(MD!$P$6=1,MD!$P$6=2), IF(MD!$P$6 =1,MD!$N$5,MD!$N$7),"#") -> 32156 | C10: =TRIM(LEFT(VLOOKUP(B10,DrawPrep!$C$3:$D$18,2,FALSE),FIND(" ",VLOOKUP(B10,DrawPrep!$C$3:$D$18,2,FALSE),1)-1)) -> ΜΑΡΙΝΑΚΗ | D10: =IF(OR(MD!$P$6 =1,MD!$P$6 =2), IF(MD!$P$6 =2,MD!$N$5,MD!$N$7),"#") -> 38221 | E10: =TRIM(LEFT(VLOOKUP(D10,DrawPrep!$C$3:$D$18,2,FALSE),FIND(" ",VLOOKUP(D10,DrawPrep!$C$3:$D$18,2,FALSE),1)-1)) -> ΓΑΡΕΦΑΛΑΚΗ | F10: =MD!R7 -> 40 40 | H10: =D2 -> 0 | I10: 9_16
A11: 8 | B11: =IF(OR(MD!$P$10=1,MD!$P$10=2), IF(MD!$P$10=1,MD!$N$9,MD!$N$11),"#") -> 33640 | C11: =TRIM(LEFT(VLOOKUP(B11,DrawPrep!$C$3:$D$18,2,FALSE),FIND(" ",VLOOKUP(B11,DrawPrep!$C$3:$D$18,2,FALSE),1)-1)) -> ΠΡΙΝΙΑΝΑΚΗ | D11: =IF(OR(MD!$P$10=1,MD!$P$10=2), IF(MD!$P$10=2,MD!$N$9,MD!$N$11),"#") -> 36599 | E11: =TRIM(LEFT(VLOOKUP(D11,DrawPrep!$C$3:$D$18,2,FALSE),FIND(" ",VLOOKUP(D11,DrawPrep!$C$3:$D$18,2,FALSE),1)-1)) -> ΔΑΒΡΑΔΟΥ | F11: =MD!R11 -> 40 40 | H11: 36510 | I11: 9_16
A12: 8 | B12: =IF(OR(MD!$P$14=1,MD!$P$14=2), IF(MD!$P$14=1,MD!$N$13,MD!$N$15),"#") -> 36262 | C12: =TRIM(LEFT(VLOOKUP(B12,DrawPrep!$C$3:$D$18,2,FALSE),FIND(" ",VLOOKUP(B12,DrawPrep!$C$3:$D$18,2,FALSE),1)-1)) -> ΝΤΑΜΠΑΚΑΚΗ | D12: =IF(OR(MD!$P$14=1,MD!$P$14=2), IF(MD!$P$14=2,MD!$N$13,MD!$N$15),"#") -> 37666 | E12: =TRIM(LEFT(VLOOKUP(D12,DrawPrep!$C$3:$D$18,2,FALSE),FIND(" ",VLOOKUP(D12,DrawPrep!$C$3:$D$18,2,FALSE),1)-1)) -> ΚΟΚΚΙΝΑΚΗ | F12: =MD!R15 -> 40 41 | H12: 0 | I12: 9_16
A13: 8 | B13: =IF(OR(MD!$P$18=1,MD!$P$18=2), IF(MD!$P$18=1,MD!$N$17,MD!$N$19),"#") -> 36200 | C13: =TRIM(LEFT(VLOOKUP(B13,DrawPrep!$C$3:$D$18,2,FALSE),FIND(" ",VLOOKUP(B13,DrawPrep!$C$3:$D$18,2,FALSE),1)-1)) -> ΑΛΠΑΝΤΗ | D13: =IF(OR(MD!$P$18=1,MD!$P$18=2), IF(MD!$P$18=2,MD!$N$17,MD!$N$19),"#") -> 36199 | E13: =TRIM(LEFT(VLOOKUP(D13,DrawPrep!$C$3:$D$18,2,FALSE),FIND(" ",VLOOKUP(D13,DrawPrep!$C$3:$D$18,2,FALSE),1)-1)) -> ΚΑΡΑΠΑΝΤΑΖΗ | F13: =MD!R19 -> 53 42 | H13: 0 | I13: 9_16
A14: 4 | B14: =IF(OR(MD!$S$8=1,MD!$S$8=2), IF(MD!$S$8=1,MD!$Q$6,MD!$Q$10),"#") -> 32156 | C14: =TRIM(LEFT(VLOOKUP(B14,DrawPrep!$C$3:$D$18,2,FALSE),FIND(" ",VLOOKUP(B14,DrawPrep!$C$3:$D$18,2,FALSE),1)-1)) -> ΜΑΡΙΝΑΚΗ | D14: =IF(OR(MD!$S$8 =1,MD!$S$8 =2), IF(MD!$S$8 =2,MD!$Q$6,MD!$Q$10),"#") -> 33640 | E14: =TRIM(LEFT(VLOOKUP(D14,DrawPrep!$C$3:$D$18,2,FALSE),FIND(" ",VLOOKUP(D14,DrawPrep!$C$3:$D$18,2,FALSE),1)-1)) -> ΠΡΙΝΙΑΝΑΚΗ | F14: =MD!U9 -> 61 62 | H14: 0 | I14: 9_16
A15: 4 | B15: =IF(OR(MD!$S$16=1,MD!$S$16=2), IF(MD!$S$16=1,MD!$Q$14,MD!$Q$18),"#") -> 36200 | C15: =TRIM(LEFT(VLOOKUP(B15,DrawPrep!$C$3:$D$18,2,FALSE),FIND(" ",VLOOKUP(B15,DrawPrep!$C$3:$D$18,2,FALSE),1)-1)) -> ΑΛΠΑΝΤΗ | D15: =IF(OR(MD!$S$16=1,MD!$S$16=2), IF(MD!$S$16=2,MD!$Q$14,MD!$Q$18),"#") -> 36262 | E15: =TRIM(LEFT(VLOOKUP(D15,DrawPrep!$C$3:$D$18,2,FALSE),FIND(" ",VLOOKUP(D15,DrawPrep!$C$3:$D$18,2,FALSE),1)-1)) -> ΝΤΑΜΠΑΚΑΚΗ | F15: =MD!U17 -> 64 76(5) | H15: 0 | I15: 9_16
A16: 2 | B16: =IF(OR(MD!$S$12=1,MD!$S$12=2), IF(MD!$S$12=1,MD!$T$8,MD!$T$16),"#") -> 32156 | C16: =TRIM(LEFT(VLOOKUP(B16,DrawPrep!$C$3:$D$18,2,FALSE),FIND(" ",VLOOKUP(B16,DrawPrep!$C$3:$D$18,2,FALSE),1)-1)) -> ΜΑΡΙΝΑΚΗ | D16: =IF(OR(MD!$S$12=1,MD!$S$12=2), IF(MD!$S$12=2,MD!$T$8,MD!$T$16),"#") -> 36200 | E16: =TRIM(LEFT(VLOOKUP(D16,DrawPrep!$C$3:$D$18,2,FALSE),FIND(" ",VLOOKUP(D16,DrawPrep!$C$3:$D$18,2,FALSE),1)-1)) -> ΑΛΠΑΝΤΗ | F16: =MD!U13 -> 64 61 | H16: 38619 | I16: 9_16
H17: 0 | I17: 9_16
